bitfinex/quotes_ETHUSD_20251218
["timestamp","ask_amount","ask_price","bid_price","bid_amount"]
[1766023144121,0.001,2833.7,2832.7,1.920904]
[1766023144823,0.001,2833.7,2832.7,0.405504]
[1766023145311,0.001,2833.7,2832.7,1.920904]
[1766023146431,0.001,2833.7,2832.7,0.405504]
[1766023146766,0.001,2833.7,2832.3,1.5154]
[1766023146973,0.001,2833.7,2832.4,1.06134766]
[1766023147845,0.406504,2833.7,2832.4,1.06134766]
[1766023149424,0.406504,2833.7,2832.4,2.57674766]
[1766023151448,0.405504,2833.5,2832.4,2.57674766]
[1766023152022,0.406504,2833.7,2832.4,2.57674766]
[1766023153266,0.406504,2833.7,2832.4,2.57874766]
[1766023155066,0.406504,2833.7,2832.4,1.5174]
[1766023155875,0.406504,2833.7,2832.4,0.002]
[1766023155876,0.405504,2833.5,2832.4,0.002]
[1766023157345,1.46697558,2833.5,2832.4,0.002]
[1766023157844,0.405504,2833.4,2832.4,0.002]
[1766023158039,0.19313558,2833.3,2832.4,0.002]
[1766023158246,0.405504,2833.5,2832.4,0.002]
[1766023159862,1.46697558,2833.5,2832.4,0.002]
[1766023160377,0.405504,2833.5,2832.4,0.002]
[1766023164467,0.86988423,2833.5,2832.4,0.002]
[1766023164664,10.5298051,2833.5,2831.7,0.03530325]
[1766023164994,0.61974946,2833.4,2831.8,0.3566793]
[1766023165162,0.61974946,2833.4,2831.9,1.5499]
[1766023165564,0.61974946,2833.4,2831.9,0.3529]
[1766023165870,0.61974946,2833.4,2831.8,0.3566793]
[1766023166070,0.405504,2833.2,2831.9,1.5499]
[1766023166383,0.405504,2833.2,2831.8,0.3586793]
[1766023166580,0.405504,2833.2,2832.1,1.197]
[1766023166782,0.405504,2833.2,2832.1,1.5499]
[1766023172406,0.405504,2833.2,2831.9,1.5499]
[1766023172604,0.405504,2833.0,2831.9,1.5499]
[1766023173105,0.405504,2833.0,2832.0,0.002]
[1766023175523,0.405504,2833.0,2832.0,1.5519]
[1766023176020,0.405504,2833.0,2832.0,0.002]
[1766023176229,0.405504,2833.2,2832.1,1.5499]
[1766023176930,0.405504,2833.0,2832.1,1.5499]
[1766023177506,0.405504,2833.0,2832.0,0.002]
[1766023178127,0.405504,2833.0,2832.1,1.5499]
[1766023178633,0.405504,2833.0,2832.1,1.197]
[1766023178835,0.405504,2833.0,2832.3,1.5499]
[1766023179011,0.22055617,2833.1,2832.3,1.5499]
[1766023179213,0.405504,2833.3,2832.3,1.5499]
[1766023179720,0.405504,2833.4,2832.3,1.5499]
[1766023180114,0.86988423,2833.4,2832.3,1.5499]
[1766023180316,4.39922223,2833.4,2832.3,1.5499]
[1766023180642,4.39922223,2833.4,2832.1,1.5499]
[1766023180935,0.405504,2833.2,2832.1,1.5499]
[1766023181321,0.405504,2833.2,2832.3,0.002]
[1766023185065,0.405504,2833.2,2832.3,1.5085]
[1766023186655,0.405504,2833.2,2832.3,0.002]
[1766023188340,0.405504,2833.2,2832.0,0.002]
[1766023188545,0.405504,2833.0,2832.0,0.002]
[1766023189837,0.405504,2833.0,2832.0,1.5085]
[1766023192050,0.405504,2833.0,2832.0,0.002]
[1766023192643,0.23950774,2833.1,2832.2,1.5065]
[1766023192868,0.406504,2833.2,2832.4,1.5065]
[1766023194862,0.406504,2833.2,2832.0,1.5085]
[1766023195179,0.406504,2833.2,2832.1,1.5065]
[1766023195977,0.406504,2833.2,2832.2,1.5065]
[1766023197489,0.001,2833.2,2832.0,0.002]
[1766023197654,0.001,2833.2,2832.4,1.5065]
[1766023200402,0.001,2833.2,2832.0,0.002]
[1766023200403,0.001,2833.2,2832.0,0.03730325]
[1766023200568,0.001,2833.5,2833.0,0.3591]
[1766023200772,0.001,2833.5,2833.2,1.5065]
[1766023201195,0.001,2833.5,2832.8,0.03530076]
[1766023201412,0.001,2833.5,2833.1,0.3591]
[1766023201618,0.001,2833.7,2833.2,0.03529577]
[1766023201773,0.001,2833.7,2833.5,0.3591]
[1766023201972,0.001,2833.7,2833.5,1.5065]
[1766023203712,0.001,2833.7,2832.5,0.59430325]
[1766023204002,0.001,2833.7,2832.8,1.1474]
[1766023204171,0.001,2833.7,2832.9,1.5065]
[1766023204568,0.001,2833.7,2832.7,1.5065]
[1766023204772,0.001,2833.7,2832.9,0.3591]
[1766023204978,0.001,2833.7,2833.0,1.5065]
[1766023205487,0.001,2833.7,2832.5,0.59430325]
[1766023205798,0.001,2833.7,2832.6,1.5065]
[1766023206203,0.001,2833.7,2832.5,1.5065]
[1766023206403,0.001,2833.7,2832.4,0.3591]
[1766023206603,0.001,2833.7,2832.6,1.5065]
[1766023206794,0.001,2833.7,2832.3,3.53066539]
[1766023206999,0.001,2833.7,2832.9,1.1474]
[1766023207214,0.001,2833.7,2833.0,1.5065]
[1766023209196,0.001,2833.7,2833.0,0.3591]
[1766023209389,0.001,2833.7,2833.1,1.5065]
[1766023209793,6.12859914,2833.2,2832.0,0.002]
[1766023210019,0.001,2833.7,2831.2,0.002]
[1766023210020,6.12859914,2832.1,2831.2,0.002]
[1766023210223,6.12859914,2831.6,2831.2,0.002]
[1766023210437,0.46438023,2831.8,2831.2,0.002]
[1766023210717,1.6448176,2831.6,2831.2,0.002]
[1766023211111,6.74147071,2831.9,2831.0,1.2324]
[1766023211112,0.61287157,2831.9,2831.0,1.2324]
[1766023211309,1.0772518,2831.9,2831.0,1.2324]
[1766023211513,0.61287157,2831.9,2831.0,1.2324]
[1766023211712,0.61287157,2831.9,2830.9,0.002]
[1766023211898,1.17976682,2831.9,2830.9,0.002]
[1766023212224,1.33753102,2831.8,2830.7,0.002]
[1766023212939,1.30222139,2831.8,2830.7,0.002]
[1766023213636,0.405504,2831.6,2830.7,0.002]
[1766023214032,0.03530963,2831.7,2830.7,0.002]
[1766023214033,0.405504,2831.7,2830.7,0.002]
[1766023214861,0.89671739,2831.7,2830.7,0.002]
[1766023215154,0.405504,2831.6,2830.7,0.002]
[1766023215664,0.89671739,2831.7,2830.7,0.002]
[1766023215846,1.06192998,2832.2,2830.7,0.002]
[1766023216024,0.89671739,2832.3,2830.7,0.002]
[1766023216219,0.54709466,2832.2,2830.8,1.5859]
[1766023216439,0.14159066,2832.2,2830.7,0.002]
[1766023216639,0.405504,2832.1,2830.9,1.5859]
[1766023216833,0.03530963,2832.0,2830.9,1.5859]
[1766023217038,0.405504,2831.9,2830.7,0.002]
[1766023217246,1.02644085,2831.9,2830.7,0.002]
[1766023217458,0.405504,2831.8,2830.7,0.002]
[1766023218621,0.86988423,2831.8,2830.7,0.002]
[1766023219155,0.405504,2831.8,2830.7,0.002]
[1766023219355,0.405504,2832.1,2830.7,0.03732695]
[1766023219562,0.405504,2832.1,2830.9,1.5859]
[1766023220437,0.405504,2832.1,2830.8,1.5859]
[1766023220639,0.14159066,2832.2,2831.1,0.3535]
[1766023220860,5.28417784,2832.7,2831.2,1.62120325]
[1766023221171,0.405504,2832.3,2831.2,1.62120325]
[1766023221530,3.28863205,2832.6,2831.2,1.62120325]
[1766023221736,3.28863205,2832.6,2831.2,0.03530325]
[1766023221737,0.405504,2832.5,2831.2,0.03530325]
[1766023221961,0.96756462,2832.5,2831.2,0.03530325]
[1766023222168,0.405504,2832.3,2831.2,0.03530325]
[1766023223484,0.405504,2832.3,2831.1,0.03530325]
[1766023225577,0.03530963,2832.2,2831.1,0.002]
[1766023226981,0.49979986,2832.1,2831.1,0.002]
[1766023227152,0.405504,2832.1,2831.1,0.002]
[1766023228479,0.56206062,2832.3,2831.1,0.03730325]
[1766023228687,3.724,2833.2,2831.1,0.03730325]
[1766023228688,3.53086587,2833.0,2831.6,1.5859]
[1766023228920,1.76428209,2832.8,2831.1,0.03730325]
[1766023229121,0.405504,2832.6,2831.3,0.03530325]
[1766023229425,0.03530963,2832.5,2831.3,0.03530325]
[1766023229625,0.405504,2832.4,2831.2,1.5859]
[1766023229789,0.03530963,2832.3,2831.2,1.5859]
[1766023230211,0.44081363,2832.4,2831.2,1.5859]
[1766023231197,0.44081363,2832.4,2831.1,0.002]
[1766023231403,0.46438023,2832.2,2831.3,1.5859]
[1766023231799,0.35308659,2832.9,2831.8,1.5859]
[1766023232006,0.405504,2832.7,2831.8,1.5859]
[1766023232321,0.49968986,2832.8,2831.8,1.5859]
[1766023232723,0.405504,2832.7,2831.8,1.5859]
[1766023233423,0.03530963,2832.6,2831.8,1.5859]
[1766023235034,0.49968986,2832.6,2831.8,1.5859]
[1766023235331,0.70405666,2832.5,2831.8,1.5859]
[1766023238536,0.70405666,2832.5,2831.6,1.62120325]
[1766023238744,0.70405666,2832.5,2831.6,0.03530325]
[1766023238908,0.70405666,2832.5,2831.7,1.5859]
[1766023239936,0.86988423,2832.7,2831.7,1.5859]
[1766023240510,0.03530963,2832.6,2831.7,1.5859]
[1766023241241,0.86988423,2832.7,2831.7,1.5859]
[1766023241447,0.86988423,2832.7,2831.9,1.5803]
[1766023241935,0.001,2832.7,2831.9,1.5803]
[1766023242641,0.001,2832.7,2831.6,0.03530325]
[1766023242839,0.001,2832.7,2831.9,1.5803]
[1766023243440,0.001,2832.7,2831.8,0.03530325]
[1766023243637,0.001,2832.7,2832.0,0.3409]
[1766023243945,0.001,2832.7,2832.0,1.5803]
[1766023246639,0.46538023,2832.7,2832.0,1.5803]
[1766023248344,0.46538023,2832.7,2831.9,1.5803]
[1766023248544,0.46538023,2832.7,2831.6,0.03530325]
[1766023248747,0.46538023,2832.7,2832.0,0.3409]
[1766023249045,0.46538023,2832.7,2832.0,1.5803]
[1766023252714,0.46538023,2832.7,2831.3,6.1353727]
[1766023252715,6.1353727,2832.2,2831.3,1.2394]
[1766023252917,6.1353727,2832.2,2831.4,1.61560325]
[1766023253149,6.1353727,2832.2,2831.5,1.5803]
[1766023253653,0.46438023,2832.1,2831.3,1.5803]
[1766023254014,6.1353727,2831.7,2830.9,1.5803]
[1766023254544,0.46438023,2831.6,2830.9,1.5803]
[1766023264949,0.46438023,2831.6,2830.8,0.002]
[1766023265148,0.46438023,2831.6,2831.1,1.5823]
[1766023268062,6.1353727,2831.4,2830.8,0.002]
[1766023268362,6.1353727,2831.1,2830.7,0.002]
[1766023268557,0.46438023,2831.0,2830.7,0.002]
[1766023268877,0.46438023,2831.0,2830.7,1.5823]
[1766023269382,6.13950788,2831.4,2830.7,1.5823]
[1766023269583,0.46438023,2831.3,2830.7,1.5823]
[1766023270439,1.12476904,2831.3,2830.7,1.5823]
[1766023271669,1.12476904,2831.3,2830.7,0.002]
[1766023275757,1.12476904,2831.3,2830.7,1.6794]
[1766023279278,0.46438023,2831.0,2830.5,0.002]
[1766023279483,0.46438023,2831.0,2830.3,0.002]
[1766023279686,0.56206062,2830.9,2830.3,0.002]
[1766023280761,0.56206062,2830.9,2830.1,0.002]
[1766023280962,6.13950788,2830.8,2830.1,0.002]
[1766023281163,0.67015685,2830.7,2830.1,0.002]
[1766023281569,1.13453708,2830.7,2830.1,0.002]
[1766023284501,1.13453708,2830.7,2829.8,0.002]
[1766023284502,0.46438023,2830.4,2829.8,0.002]
[1766023284787,0.46438023,2830.4,2829.6,0.002]
[1766023284788,6.13950788,2830.2,2829.6,0.002]
[1766023285157,6.80966473,2830.2,2829.5,0.002]
[1766023285361,0.46438023,2830.1,2829.5,0.002]
[1766023285968,0.67015685,2830.2,2829.6,1.6774]
[1766023286180,0.67015685,2830.2,2829.5,0.002]
[1766023286181,0.56206062,2830.3,2829.5,0.002]
[1766023286489,0.56206062,2830.3,2829.6,1.6774]
[1766023286855,0.56206062,2830.3,2829.6,1.3056]
[1766023287060,0.405504,2830.9,2829.9,0.3718]
[1766023287417,6.13950788,2831.4,2830.5,0.3718]
[1766023287558,0.56206062,2831.4,2830.5,0.03530325]
[1766023287758,0.001,2831.6,2830.9,1.3056]
[1766023287971,0.001,2831.6,2831.0,1.7127232]
[1766023288499,0.001,2831.6,2831.0,1.6774]
[1766023290806,0.001,2831.6,2831.0,1.6794]
[1766023292474,0.001,2831.6,2831.0,0.002]
[1766023293209,0.001,2831.6,2831.0,1.6794]
[1766023293405,0.001,2831.6,2831.0,0.002]
[1766023296407,0.03630963,2831.6,2830.5,1.6774]
[1766023297003,0.001,2831.6,2830.4,1.3056]
[1766023297204,0.001,2831.6,2830.6,1.6774]
[1766023298126,0.001,2831.6,2830.7,0.3718]
[1766023298287,0.001,2831.6,2830.7,1.6774]
[1766023298783,0.001,2831.6,2830.5,1.86396]
[1766023298784,0.03630963,2831.6,2830.5,1.86396]
[1766023298984,0.03630963,2831.6,2830.5,0.18656]
[1766023299212,0.03630963,2831.6,2830.6,0.3718]
[1766023299428,0.03630963,2831.6,2830.6,1.6774]
[1766023303015,0.001,2831.6,2830.6,1.6774]
[1766023303618,0.001,2831.6,2830.8,0.3384]
[1766023303852,0.001,2831.6,2830.8,1.7214]
[1766023307256,0.001,2831.6,2830.8,1.383]
[1766023307403,0.001,2831.6,2831.2,1.7214]
[1766023307620,0.001,2831.6,2831.3,1.7214]
[1766023307944,0.001,2831.6,2830.6,0.03530325]
[1766023307945,0.001,2831.6,2831.0,0.3384]
[1766023308149,0.001,2831.6,2831.0,1.7214]
[1766023309056,0.001,2831.6,2830.7,1.7214]
[1766023309214,0.001,2831.6,2830.8,0.3384]
[1766023309414,0.001,2831.6,2831.0,1.383]
[1766023309616,0.001,2831.6,2830.7,1.383]
[1766023309815,0.001,2831.6,2830.6,0.37370325]
[1766023309816,0.001,2831.6,2830.6,0.3384]
[1766023310237,0.001,2831.6,2830.6,1.7214]
[1766023311326,6.1393154,2831.5,2830.6,1.7214]
[1766023311520,0.46438023,2831.4,2830.6,1.7214]
[1766023319253,0.46438023,2831.4,2830.7,1.7214]
[1766023320128,0.46438023,2831.4,2830.5,0.002]
[1766023320331,0.46438023,2831.1,2830.5,1.7234]
[1766023322350,0.46438023,2831.1,2830.5,0.002]
[1766023322552,1.12474979,2831.1,2830.5,0.002]
[1766023322746,1.12474979,2831.1,2830.5,1.7234]
[1766023323832,1.12474979,2831.1,2830.0,1.7234]
[1766023323833,6.1393154,2830.9,2830.0,1.7234]
[1766023324157,6.1393154,2830.9,2830.1,1.7214]
[1766023324358,6.1393154,2830.6,2830.0,0.002]
[1766023325448,0.46438023,2830.8,2830.0,0.002]
[1766023326463,0.46438023,2830.8,2830.0,1.7234]
[1766023327661,6.1393154,2830.3,2829.6,1.7214]
[1766023327858,0.61393154,2830.2,2829.1,0.03530325]
[1766023328052,6.1393154,2830.2,2829.1,0.03530325]
[1766023328452,0.46438023,2830.1,2829.1,0.03530325]
[1766023328651,0.46438023,2830.1,2828.9,0.03530325]
[1766023328858,0.46438023,2830.1,2829.1,0.03530325]
[1766023329058,0.66036956,2830.0,2829.1,0.03530325]
[1766023329252,0.66036956,2830.0,2828.9,0.03530325]
[1766023329946,0.66036956,2830.0,2829.1,1.7214]
[1766023330139,0.66036956,2830.0,2829.1,1.383]
[1766023330474,0.66036956,2830.0,2829.2,1.7214]
[1766023331438,0.46438023,2829.7,2829.2,1.383]
[1766023331636,0.46438023,2829.7,2829.3,1.6973]
[1766023333644,0.46438023,2829.7,2829.1,1.6973]
[1766023333974,0.46438023,2829.7,2829.0,0.002]
[1766023334377,0.46438023,2830.0,2829.3,0.3627]
[1766023334556,0.46438023,2830.0,2829.5,1.6973]
[1766023334757,0.46438023,2830.0,2829.1,0.03530325]
[1766023335072,0.46438023,2830.0,2829.2,1.3346]
[1766023335278,0.46438023,2830.0,2829.4,1.6973]
[1766023335578,6.14554122,2830.8,2829.9,0.3627]
[1766023335753,6.81396778,2830.8,2830.2,1.6973]
[1766023335956,0.46438023,2830.7,2830.2,1.6973]
[1766023336274,0.46438023,2830.5,2829.9,0.3627]
[1766023336450,0.46438023,2830.5,2829.9,1.6973]
[1766023339245,0.46438023,2830.5,2829.9,0.3627]
[1766023339450,0.46438023,2830.5,2830.3,0.3627]
[1766023339646,0.001,2830.8,2829.9,0.03530325]
[1766023339852,0.001,2831.4,2830.4,0.03530325]
[1766023340061,0.001,2831.4,2830.5,1.3346]
[1766023340680,0.001,2831.4,2830.8,1.6973]
[1766023340877,6.14554122,2831.2,2830.8,1.6973]
[1766023341047,6.14554122,2831.2,2830.0,1.3346]
[1766023341048,6.14554122,2830.9,2830.0,1.3346]
[1766023341401,6.14554122,2830.6,2830.2,1.3346]
[1766023341767,6.14554122,2830.6,2830.2,1.6973]
[1766023344579,6.14554122,2830.6,2830.2,0.3627]
[1766023344767,6.14554122,2830.6,2829.7,0.3627]
[1766023345082,6.14554122,2830.6,2829.7,0.03530325]
[1766023345278,6.14554122,2830.6,2829.8,1.3346]
[1766023345480,6.14554122,2830.6,2829.9,1.6973]
[1766023345481,0.46438023,2830.5,2829.9,1.6973]
[1766023345777,0.46438023,2830.5,2829.3,4.12962411]
[1766023345778,0.46438023,2830.5,2829.3,0.03530325]
[1766023345980,0.46438023,2830.5,2829.7,1.6973]
[1766023346689,6.14554122,2830.0,2829.3,1.6973]
[1766023346855,6.14554122,2829.7,2829.0,0.002]
[1766023347057,6.14554122,2829.9,2829.4,1.6973]
[1766023347256,6.14554122,2829.5,2829.0,0.002]
[1766023347453,0.46438023,2829.0,2827.9,0.002]
[1766023347654,1.51974798,2829.4,2826.3,0.03530325]
[1766023347655,6.14554122,2828.1,2827.6,1.6973]
[1766023348160,6.14554122,2828.1,2827.6,1.3346]
[1766023348369,6.14554122,2828.1,2827.4,0.3627]
[1766023348567,6.14554122,2827.8,2827.1,0.3647]
[1766023349401,0.46438023,2828.1,2827.6,1.3346]
[1766023349582,0.405504,2828.5,2827.2,1.6973]
[1766023349583,6.14554122,2827.9,2827.2,1.6973]
[1766023349908,6.14554122,2827.9,2827.1,0.002]
[1766023350405,6.14554122,2827.6,2827.1,0.002]
[1766023351055,0.46438023,2827.5,2827.1,1.6993]
[1766023351403,0.405504,2828.1,2827.1,0.002]
[1766023351699,0.44081363,2828.1,2827.1,0.002]
[1766023352054,0.405504,2828.4,2827.1,0.002]
[1766023352354,1.46889447,2828.4,2827.3,1.6973]
[1766023352560,1.46889447,2828.4,2827.1,0.002]
[1766023352561,0.19332747,2828.3,2827.2,1.6973]
[1766023352896,0.19332747,2828.3,2827.1,0.002]
[1766023352897,0.405504,2828.5,2827.1,3.57450638]
[1766023353189,0.51518581,2828.9,2827.7,1.6973]
[1766023353378,2.04276054,2828.9,2827.7,1.3346]
[1766023353576,2.04276054,2828.9,2827.7,1.6973]
[1766023353790,8.53543192,2829.0,2827.8,0.3627]
[1766023353990,0.405504,2828.8,2827.6,0.3627]
[1766023354286,0.405504,2828.8,2827.6,1.6973]
[1766023355181,0.405504,2828.8,2827.7,1.3346]
[1766023355490,0.405504,2828.8,2827.6,0.3627]
[1766023355689,0.405504,2828.8,2827.7,1.3346]
[1766023355879,1.58922495,2828.8,2827.7,1.6973]
[1766023357714,1.58922495,2828.8,2827.5,1.3346]
[1766023358017,1.58922495,2828.8,2827.8,1.6973]
[1766023359318,1.58922495,2828.8,2827.9,1.3346]
[1766023359486,1.58922495,2828.8,2828.0,0.3627]
[1766023359688,1.18372095,2828.8,2828.2,0.3627]
[1766023360088,1.18372095,2828.8,2827.7,1.3346]
[1766023360287,1.64810118,2828.8,2827.7,1.3346]
[1766023361615,1.64810118,2828.8,2827.7,1.4494]
[1766023361819,8.53087966,2829.3,2827.9,1.4494]
[1766023362116,2.49296471,2829.6,2828.3,0.3734]
[1766023362419,1.56676467,2829.5,2828.4,1.8228]
[1766023362792,0.405504,2829.4,2828.1,0.03530325]
[1766023362993,0.405504,2829.4,2828.2,1.4494]
[1766023363327,0.405504,2829.4,2828.4,1.4494]
[1766023363509,0.405504,2829.4,2828.6,1.8228]
[1766023363817,0.19722687,2829.3,2828.6,1.8228]
[1766023364039,0.19722687,2829.3,2828.2,3.53573978]
[1766023364242,0.19722687,2829.3,2828.3,0.03530325]
[1766023364453,0.19722687,2829.3,2828.4,1.4494]
[1766023364626,1.10238444,2829.5,2828.7,0.3734]
[1766023364827,1.10238444,2829.5,2828.7,1.8228]
[1766023365037,1.10238444,2829.5,2828.5,1.8228]
[1766023365213,0.46438023,2830.0,2828.5,1.8228]
[1766023365420,0.405504,2829.8,2828.7,1.8228]
[1766023365641,0.405504,2829.8,2828.8,1.4494]
[1766023365819,0.405504,2829.8,2828.5,0.03530325]
[1766023366022,0.405504,2829.8,2828.7,0.3734]
[1766023366331,0.19835378,2829.7,2828.7,0.3734]
[1766023366533,0.19835378,2829.7,2828.3,7.10665199]
[1766023366744,0.51518581,2830.2,2829.0,1.4494]
[1766023366937,0.405504,2830.1,2829.2,1.4494]
[1766023367547,1.06271619,2830.2,2829.2,1.4494]
[1766023367766,0.97956604,2830.3,2829.2,1.4494]
[1766023367948,1.06265596,2830.4,2829.4,1.4494]
[1766023368155,1.06265596,2830.4,2829.3,0.03534443]
[1766023368355,0.001,2830.8,2829.7,0.3734]
[1766023368645,0.001,2830.8,2829.5,1.4494]
[1766023368839,0.001,2830.8,2829.2,7.06913614]
[1766023369036,0.001,2830.8,2829.5,1.4494]
[1766023369242,0.001,2830.3,2829.8,0.3734]
[1766023369447,0.001,2830.3,2829.9,1.8228]
[1766023370128,0.001,2830.3,2829.4,3.53427712]
[1766023370322,0.001,2830.3,2829.9,1.4494]
[1766023370521,0.001,2830.3,2830.0,1.8228]
[1766023371763,0.001,2830.8,2829.6,0.03530325]
[1766023371959,0.001,2831.6,2830.7,0.3734]
[1766023372163,0.001,2831.6,2830.8,0.0353257]
[1766023372164,0.406504,2831.6,2830.8,0.0353257]
[1766023372327,0.406504,2831.6,2830.2,1.4494]
[1766023372534,0.001,2831.6,2830.8,0.3734]
[1766023372760,0.001,2831.6,2831.3,1.4494]
[1766023372944,0.001,2831.6,2831.4,0.3734]
[1766023373451,0.001,2831.6,2831.3,1.8228]
[1766023374038,0.001,2831.6,2830.8,0.03530325]
[1766023374363,0.001,2831.6,2831.1,1.8228]
[1766023374563,0.001,2831.6,2831.2,0.3734]
[1766023374766,0.001,2831.6,2830.7,1.4494]
[1766023375062,0.001,2831.6,2830.9,0.3734]
[1766023375300,0.001,2831.6,2830.7,0.03530325]
[1766023375301,0.001,2831.6,2831.0,1.8228]
[1766023380599,8.53087966,2831.5,2830.0,0.602]
[1766023380764,0.46438023,2830.0,2829.0,1.4494]
[1766023380971,0.03530963,2829.9,2829.1,1.4494]
[1766023381294,0.46438023,2830.0,2829.1,1.8228]
[1766023381499,1.06261456,2829.9,2829.1,1.8228]
[1766023382070,1.06261456,2829.9,2829.0,1.4494]
[1766023382386,0.405504,2830.2,2829.5,1.8228]
[1766023383496,0.405504,2830.2,2829.0,1.8228]
[1766023383869,0.405504,2830.2,2828.5,3.53535914]
[1766023384075,0.405504,2830.0,2828.9,1.8228]
[1766023384271,0.405504,2830.0,2828.6,1.8228]
[1766023384603,0.86988423,2829.5,2828.6,1.8228]
[1766023385300,1.9327096,2829.5,2828.6,1.8228]
[1766023385702,1.9327096,2829.5,2827.7,0.002]
[1766023385905,1.04635893,2829.4,2828.3,1.4494]
[1766023386083,1.04635893,2829.4,2828.4,1.8228]
[1766023386476,0.405504,2829.3,2828.4,1.8228]
[1766023386678,0.405504,2829.3,2828.0,1.4494]
[1766023387011,0.405504,2829.3,2828.3,0.002]
[1766023387190,0.405504,2829.3,2828.3,1.8248]
[1766023387897,0.86988423,2829.1,2828.3,1.8248]
[1766023388095,0.94007639,2829.0,2828.3,1.8248]
[1766023389195,0.93618788,2829.0,2828.3,1.8248]
[1766023389513,0.405504,2828.9,2828.1,1.8228]
[1766023389813,1.46861562,2828.9,2828.1,1.8228]
[1766023390182,1.06311162,2828.9,2827.9,0.03530325]
[1766023390386,0.93618788,2829.0,2828.2,1.4494]
[1766023390587,0.93618788,2829.0,2828.1,0.03530325]
[1766023390785,0.93618788,2829.0,2828.4,1.4446]
[1766023390982,0.93618788,2829.0,2828.1,0.03530325]
[1766023391515,0.93618788,2829.0,2827.9,0.03530325]
[1766023392593,0.405504,2828.9,2827.7,0.002]
[1766023392795,8.53087966,2828.7,2827.7,0.002]
[1766023392982,8.53087966,2828.7,2827.7,1.8306]
[1766023392983,1.3174682,2828.6,2827.7,1.8306]
[1766023393488,0.85308797,2828.6,2827.7,1.8306]
[1766023393795,1.46818748,2828.9,2827.7,1.8306]
[1766023394216,1.46818748,2828.9,2828.0,0.002]
[1766023395639,1.46818748,2828.9,2827.7,1.8306]
[1766023397214,0.86988423,2828.4,2827.5,0.002]
[1766023397412,0.97951402,2828.3,2827.5,1.8306]
[1766023397618,0.97951402,2828.3,2827.5,0.002]
[1766023397841,0.405504,2828.8,2827.9,1.4446]
[1766023398018,0.405504,2828.8,2827.5,0.03730325]
[1766023398219,0.93618788,2829.0,2828.1,0.384]
[1766023398420,0.14173565,2829.2,2828.3,1.8286]
[1766023398647,0.03530963,2829.1,2828.0,1.8286]
[1766023398840,0.405504,2829.0,2828.0,1.8286]
[1766023399049,0.405504,2829.0,2828.1,1.8286]
[1766023399329,0.405504,2829.1,2828.1,1.8286]
[1766023399625,0.405504,2829.1,2828.1,2.01499033]
[1766023399824,0.405504,2829.1,2828.1,0.18639033]
[1766023400017,0.405504,2829.1,2828.2,1.8286]
[1766023401428,0.03530963,2829.0,2828.2,1.8286]
[1766023401830,0.405504,2829.1,2828.2,1.8286]
[1766023402539,0.405504,2829.1,2828.2,1.7786]
[1766023405007,0.405504,2829.1,2828.1,0.002]
[1766023405214,0.405504,2828.9,2827.8,1.8286]
[1766023405441,0.405504,2828.7,2827.8,1.8286]
[1766023407828,0.405504,2828.7,2827.7,0.384]
[1766023408041,0.405504,2828.7,2827.9,1.8286]
[1766023408414,0.405504,2828.7,2827.9,0.384]
[1766023408617,0.46438023,2829.1,2828.2,1.8286]
[1766023410326,0.46438023,2829.1,2827.8,1.8306]
[1766023410527,0.86988423,2828.9,2827.8,1.8306]
[1766023410937,0.405504,2828.7,2827.8,0.002]
[1766023411148,0.03530963,2828.8,2827.6,1.8286]
[1766023411149,0.405504,2828.5,2827.6,1.8286]
[1766023411551,0.405504,2828.3,2827.2,0.002]
[1766023411720,0.405504,2828.1,2827.2,0.002]
[1766023412425,0.405504,2828.2,2827.2,0.002]
[1766023413540,0.405504,2828.2,2827.2,1.8306]
[1766023413730,0.86988423,2828.9,2827.7,0.384]
[1766023413932,1.38507004,2828.9,2827.7,1.8286]
[1766023414131,0.51518581,2828.8,2827.7,1.8286]
[1766023414338,0.405504,2828.7,2827.8,1.8286]
[1766023414537,0.405504,2828.7,2827.9,1.8286]
[1766023414939,0.405504,2828.7,2827.3,0.59630325]
[1766023415139,8.92525598,2828.5,2827.3,0.384]
[1766023415338,0.405504,2828.3,2827.3,1.8286]
[1766023415756,0.405504,2828.1,2827.1,0.002]
[1766023416282,0.405504,2827.9,2827.1,0.002]
[1766023416576,0.405504,2827.9,2826.9,0.002]
[1766023416577,0.405504,2827.7,2826.9,0.002]
[1766023416791,0.405504,2827.7,2826.7,1.4446]
[1766023416792,0.03530963,2827.6,2826.7,1.4446]
[1766023417683,0.44081363,2827.7,2826.7,1.4446]
[1766023418185,0.405504,2827.7,2826.7,1.8286]
[1766023418500,0.405504,2827.7,2826.8,0.386]
[1766023418651,0.405504,2827.7,2826.9,0.002]
[1766023419775,0.405504,2827.7,2826.9,0.386]
[1766023419979,0.405504,2827.7,2826.9,1.8306]
[1766023421075,0.405504,2827.7,2826.9,0.002]
[1766023421282,0.405504,2827.8,2827.0,1.8284]
[1766023422804,0.405504,2827.8,2827.1,0.3726]
[1766023423006,0.51518581,2828.2,2827.1,1.4558]
[1766023423178,9.39782854,2828.5,2827.3,1.8284]
[1766023423179,0.92068981,2828.4,2827.3,1.8284]
[1766023423378,1.38507004,2828.4,2827.3,1.8284]
[1766023423605,3.53516381,2828.8,2827.0,4.09928494]
[1766023423782,0.50788219,2828.7,2827.3,1.4558]
[1766023423992,0.92068981,2828.6,2827.5,1.4558]
[1766023424208,0.92068981,2828.6,2827.6,1.8284]
[1766023424209,0.03530963,2828.5,2827.6,1.8284]
[1766023424418,0.55049544,2828.5,2827.6,1.8284]
[1766023425126,0.405504,2828.4,2827.6,1.8284]